bitfinex-derivatives/quotes_BTCF0:USTF0_20260127
["timestamp","ask_amount","ask_price","bid_price","bid_amount"]
[1769473644645,0.29808,88495.0,88484.0,0.11999453]
[1769473645356,0.29808,88495.0,88486.0,0.11999453]
[1769473645557,0.11301222,88494.0,88486.0,0.11999453]
[1769473645758,0.11301222,88494.0,88487.0,0.11999453]
[1769473645955,0.11301222,88494.0,88488.0,0.11999453]
[1769473646156,0.29804,88495.0,88488.0,0.11999453]
[1769473649356,0.29804,88495.0,88485.0,0.11999453]
[1769473649961,0.11029184,88494.0,88484.0,0.09055285]
[1769473650359,0.11029184,88494.0,88483.0,0.09055285]
[1769473650559,0.11029184,88494.0,88484.0,0.09055285]
[1769473651363,0.11029184,88494.0,88483.0,0.09055285]
[1769473654063,0.04029184,88494.0,88483.0,0.09055285]
[1769473654260,0.04029184,88494.0,88484.0,0.09055285]
[1769473654457,0.29804,88495.0,88484.0,0.09055285]
[1769473654661,0.29804,88495.0,88484.0,0.21054738]
[1769473655055,0.29804,88495.0,88485.0,0.13130753]
[1769473656064,0.29804,88495.0,88487.0,0.011312]
[1769473656256,0.29804,88495.0,88485.0,0.11999453]
[1769473656956,0.29804,88495.0,88486.0,0.011313]
[1769473657157,0.04992795,88501.0,88489.0,0.13130653]
[1769473657363,0.47276,88499.0,88489.0,0.11999453]
[1769473657765,0.52226307,88499.0,88486.0,0.011313]
[1769473657960,0.04950307,88497.0,88485.0,0.21054738]
[1769473658161,0.04950307,88497.0,88486.0,0.09055285]
[1769473661570,0.04950307,88497.0,88486.0,0.11999453]
[1769473664468,0.47276,88499.0,88486.0,0.11999453]
[1769473664775,0.47276,88499.0,88487.0,0.11999453]
[1769473664776,0.1130052,88498.0,88487.0,0.11999453]
[1769473665574,0.05294307,88497.0,88486.0,0.09055285]
[1769473666472,0.47276,88499.0,88487.0,0.11999453]
[1769473666874,0.1130052,88498.0,88487.0,0.11999453]
[1769473669272,0.1130052,88498.0,88487.0,0.21054738]
[1769473669668,0.1130052,88498.0,88487.0,0.22185938]
[1769473670168,0.1130052,88498.0,88487.0,0.21054738]
[1769473670369,0.1130052,88498.0,88488.0,0.09055285]
[1769473670568,0.1130052,88498.0,88487.0,0.21054738]
[1769473671066,0.1130052,88498.0,88488.0,0.11179716]
[1769473671262,0.1130052,88498.0,88488.0,0.20235001]
[1769473672275,0.47696,88497.0,88488.0,0.20235001]
[1769473672476,0.47696,88497.0,88489.0,0.09055285]
[1769473673276,0.47696,88497.0,88490.0,0.09055285]
[1769473674274,0.47696,88497.0,88488.0,0.11179716]
[1769473674475,0.47696,88497.0,88486.0,0.13585387]
[1769473674776,0.05200983,88496.0,88486.0,0.13585387]
[1769473674977,0.05200983,88496.0,88485.0,0.13585387]
[1769473675474,0.05200983,88496.0,88486.0,0.13585387]
[1769473680778,0.47696,88497.0,88486.0,0.13585387]
[1769473682377,0.52928535,88497.0,88486.0,0.13585387]
[1769473683578,0.05224185,88496.0,88486.0,0.13585387]
[1769473683779,0.05224185,88492.0,88477.0,0.11179716]
[1769473684073,0.05224185,88492.0,88473.0,0.2710703]
[1769473684378,0.05224185,88492.0,88473.0,0.21363716]
[1769473684581,0.05224185,88492.0,88474.0,0.11179716]
[1769473685474,0.05222463,88490.0,88474.0,0.11179716]
[1769473685773,0.05222463,88488.0,88474.0,0.11179716]
[1769473686582,0.05222463,88488.0,88473.0,0.10184]
[1769473688182,0.05222463,88488.0,88474.0,0.09268]
[1769473691383,0.05222463,88488.0,88474.0,0.20447716]
[1769473696084,0.05222463,88488.0,88475.0,0.11179716]
[1769473697381,0.58188,88489.0,88475.0,0.11179716]
[1769473697583,0.63231321,88489.0,88475.0,0.11179716]
[1769473697888,0.05043321,88488.0,88475.0,0.11179716]
[1769473704788,0.05043321,88488.0,88476.0,0.08632]
[1769473707890,0.05043321,88488.0,88476.0,0.19551803]
[1769473708892,0.58188,88489.0,88477.0,0.10919803]
[1769473711896,0.63129797,88489.0,88477.0,0.10919803]
[1769473719912,0.10184,88488.0,88477.0,0.10919803]
[1769473724618,0.10184,88487.0,88477.0,0.10919803]
[1769473728021,0.04552701,88486.0,88473.0,0.24497414]
[1769473728222,0.04552701,88486.0,88478.0,0.09267]
[1769473730217,0.10184,88487.0,88478.0,0.09267]
[1769473731021,0.10184,88487.0,88479.0,0.11268825]
[1769473741022,0.06067014,88499.0,88479.0,0.11268825]
[1769473741226,0.59908,88498.0,88481.0,0.11268825]
[1769473741428,0.11301605,88498.0,88481.0,0.12400125]
[1769473741630,0.59912,88497.0,88481.0,0.12400125]
[1769473742428,0.11300839,88496.0,88481.0,0.11268825]
[1769473743930,0.22720282,88496.0,88481.0,0.11268825]
[1769473750227,0.11419443,88495.0,88481.0,0.11268825]
[1769473750933,0.11300903,88494.0,88481.0,0.11268825]
[1769473751639,0.59912,88497.0,88481.0,0.11268825]
[1769473751839,0.71331443,88497.0,88481.0,0.11268825]
[1769473752138,0.11300967,88496.0,88481.0,0.11268825]
[1769473752338,0.71331443,88497.0,88481.0,0.11268825]
[1769473752542,0.11300839,88496.0,88481.0,0.11268825]
[1769473752742,0.11300839,88496.0,88482.0,0.11268825]
[1769473753540,0.11300839,88496.0,88483.0,0.11268825]
[1769473756146,0.11300839,88496.0,88484.0,0.09267]
[1769473757545,0.11300839,88496.0,88484.0,0.20535825]
[1769473762051,0.22434109,88496.0,88484.0,0.20535825]
[1769473762541,0.10184,88495.0,88484.0,0.20535825]
[1769473763155,0.11300711,88494.0,88484.0,0.20535825]
[1769473765050,0.22433981,88494.0,88484.0,0.09267]
[1769473765647,0.011312,88491.0,88484.0,0.09267]
[1769473765854,0.22433981,88494.0,88481.0,0.09055933]
[1769473765855,0.50768,88490.0,88481.0,0.09055933]
[1769473766253,0.50768,88490.0,88479.0,0.20304016]
[1769473767151,0.1113327,88489.0,88479.0,0.09055933]
[1769473768555,0.50768,88490.0,88479.0,0.09055933]
[1769473769154,0.50768,88490.0,88479.0,0.20304016]
[1769473771759,0.1113327,88487.0,88475.0,0.09055933]
[1769473771961,0.1113327,88487.0,88474.0,0.09055933]
[1769473775558,0.1113327,88487.0,88473.0,0.29065016]
[1769473776163,0.1113327,88487.0,88474.0,0.11248083]
[1769473776360,0.1113327,88487.0,88474.0,0.20304016]
[1769473776558,0.1113327,88487.0,88475.0,0.11248083]
[1769473776757,0.50768,88490.0,88473.0,0.08761]
[1769473776758,0.1113327,88480.0,88473.0,0.08761]
[1769473777061,0.1113327,88470.0,88453.0,0.11248083]
[1769473777366,0.1113327,88468.0,88443.0,0.11248083]
[1769473777551,0.39988,88469.0,88443.0,0.11248083]
[1769473777552,0.1113327,88465.0,88443.0,0.11248083]
[1769473777857,0.39988,88469.0,88443.0,0.11248083]
[1769473777858,0.011316,88461.0,88443.0,0.11248083]
[1769473778266,0.1113327,88462.0,88443.0,0.11248083]
[1769473778562,0.1226487,88462.0,88443.0,0.11248083]
[1769473778858,0.011315,88464.0,88443.0,0.11248083]
[1769473779759,0.011315,88464.0,88444.0,0.09271]
[1769473779958,0.011315,88464.0,88445.0,0.11248083]
[1769473780358,0.011316,88461.0,88445.0,0.11248083]
[1769473781963,0.1113327,88467.0,88445.0,0.11248083]
[1769473783064,0.1113327,88465.0,88445.0,0.11248083]
[1769473784362,0.011316,88457.0,88445.0,0.11248083]
[1769473786059,0.011316,88460.0,88445.0,0.11248083]
[1769473788055,0.011316,88463.0,88445.0,0.11248083]
[1769473789460,0.1113327,88465.0,88445.0,0.11248083]
[1769473789662,0.011316,88463.0,88445.0,0.11248083]
[1769473790371,0.1113327,88465.0,88445.0,0.11248083]
[1769473791368,0.011316,88461.0,88445.0,0.11248083]
[1769473791971,0.011315,88465.0,88445.0,0.11248083]
[1769473792361,0.39988,88469.0,88445.0,0.11248083]
[1769473792766,0.011316,88462.0,88445.0,0.11248083]
[1769473796672,0.10188,88465.0,88445.0,0.11248083]
[1769473796873,0.011316,88461.0,88445.0,0.11248083]
[1769473799662,0.011316,88461.0,88447.0,0.11900996]
[1769473800263,0.011315,88464.0,88447.0,0.11900996]
[1769473800469,0.011315,88468.0,88447.0,0.11900996]
[1769473800676,0.29804,88469.0,88449.0,0.11900996]
[1769473800974,0.11305311,88468.0,88449.0,0.11900996]
[1769473801474,0.12436811,88468.0,88449.0,0.11900996]
[1769473802267,0.12288857,88463.0,88449.0,0.11900996]
[1769473802571,0.11157257,88456.0,88446.0,0.09271]
[1769473802763,0.011317,88453.0,88446.0,0.09271]
[1769473802963,0.011317,88453.0,88442.0,0.1019876]
[1769473802964,0.11157257,88453.0,88442.0,0.1019876]
[1769473803165,0.11157257,88450.0,88436.0,0.11900996]
[1769473803365,0.12289057,88445.0,88431.0,0.11900996]
[1769473803774,0.11157257,88439.0,88422.0,0.11900996]
[1769473803971,0.11157257,88437.0,88422.0,0.11900996]
[1769473805275,0.11157257,88435.0,88422.0,0.11900996]
[1769473805884,0.01132,88432.0,88418.0,1.5]
[1769473806071,0.11308443,88434.0,88414.0,0.10188]
[1769473806072,0.11157257,88429.0,88414.0,0.10188]
[1769473806272,0.11157257,88427.0,88414.0,0.10188]
[1769473806677,0.0114276,88428.0,88413.0,1.50653088]
[1769473806678,0.12289257,88426.0,88413.0,1.50653088]
[1769473807072,0.11309466,88425.0,88413.0,0.00653088]
[1769473807272,0.11157257,88424.0,88407.0,0.11900996]
[1769473808170,0.10188,88423.0,88407.0,0.11900996]
[1769473808685,0.11157257,88424.0,88407.0,0.11900996]
[1769473808880,0.21345257,88424.0,88407.0,0.11900996]
[1769473810789,0.21345257,88424.0,88408.0,0.11900996]
[1769473815081,0.0001076,88428.0,88407.0,0.09275]
[1769473815082,0.0001076,88428.0,88415.0,0.11900996]
[1769473815278,0.10188,88436.0,88417.0,0.11900996]
[1769473815582,0.11309466,88435.0,88417.0,0.11900996]
[1769473816087,0.22466723,88435.0,88417.0,0.11900996]
[1769473816878,0.11157257,88434.0,88417.0,0.11900996]
[1769473817588,0.11308954,88433.0,88417.0,0.11900996]
[1769473818387,0.11308954,88433.0,88417.0,0.13033096]
[1769473820780,0.11308954,88433.0,88420.0,0.10876395]
[1769473821676,0.11308954,88433.0,88420.0,0.27226995]
[1769473822593,0.011319,88438.0,88424.0,0.10876395]
[1769473822787,0.10188,88437.0,88424.0,0.10876395]
[1769473822979,0.11308827,88435.0,88424.0,0.10876395]
[1769473823186,0.10188,88437.0,88424.0,0.10876395]
[1769473823587,0.11308443,88436.0,88424.0,0.10876395]
[1769473826295,0.11397797,88435.0,88420.0,0.163506]
[1769473829494,0.11397797,88435.0,88421.0,0.10876395]
[1769473831202,0.10502901,88434.0,88420.0,0.163506]
[1769473831399,0.11397797,88432.0,88420.0,0.163506]
[1769473831601,0.11397797,88430.0,88414.0,0.10192]
[1769473831796,0.11397797,88429.0,88406.0,0.011323]
[1769473832000,0.11397797,88429.0,88408.0,1.69321005]
[1769473832198,0.10503436,88428.0,88410.0,0.163506]
[1769473832402,0.11397797,88426.0,88410.0,0.25479605]
[1769473832587,0.21901233,88425.0,88410.0,0.25479605]
[1769473832791,0.10503436,88424.0,88410.0,0.25479605]
[1769473833291,0.10503436,88424.0,88413.0,0.0565379]
[1769473833492,0.10503436,88423.0,88413.0,0.0565379]
[1769473833693,0.10503436,88422.0,88413.0,0.0565379]
[1769473833895,0.10503436,88421.0,88415.0,0.02016384]
[1769473834096,0.10503436,88420.0,88415.0,0.02016384]
[1769473834400,0.10503436,88419.0,88415.0,0.02016384]
[1769473834601,0.11397797,88429.0,88415.0,0.02016384]
[1769473834901,0.11309978,88428.0,88415.0,0.02016384]
[1769473835201,0.22707775,88428.0,88415.0,0.02016384]
[1769473835502,0.11397797,88427.0,88418.0,0.163506]
[1769473836800,0.11397797,88427.0,88415.0,0.03148584]
[1769473837102,0.11397797,88427.0,88415.0,0.011322]
[1769473842200,0.11397797,88427.0,88410.0,0.163506]
[1769473842507,0.11397797,88427.0,88412.0,0.011322]
[1769473844510,0.11397797,88427.0,88414.0,0.011322]
[1769473845911,0.11397797,88427.0,88410.0,0.163506]
[1769473848516,0.11397797,88427.0,88414.0,0.011322]
[1769473849718,0.11397797,88427.0,88410.0,0.163506]
[1769473849909,0.03650174,88437.0,88417.0,0.163506]
[1769473850103,0.10192,88436.0,88420.0,0.163506]
[1769473850511,0.13842174,88436.0,88420.0,0.163506]
[1769473850718,0.03650339,88435.0,88420.0,0.163506]
[1769473850917,0.03650339,88434.0,88420.0,0.163506]
[1769473851817,0.04782239,88434.0,88410.0,0.163506]
[1769473852220,0.03650339,88433.0,88410.0,0.163506]
[1769473853325,0.03650339,88433.0,88414.0,0.011322]
[1769473853622,0.03650339,88433.0,88410.0,0.163506]
[1769473853823,0.03650339,88433.0,88420.0,0.163506]
[1769473858328,0.03650339,88433.0,88421.0,0.011321]
[1769473860628,0.03639669,88439.0,88420.0,0.163506]
[1769473860822,0.10192,88439.0,88429.0,0.163506]
[1769473861023,0.06270275,88444.0,88431.0,0.01132]
[1769473861525,0.11308763,88443.0,88431.0,0.01132]
[1769473861828,0.03639669,88447.0,88431.0,0.01132]
[1769473862127,0.03639669,88446.0,88430.0,0.01132]
[1769473862332,0.03639669,88446.0,88433.0,0.011319]
[1769473862734,0.11307356,88445.0,88433.0,0.011319]
[1769473863833,0.11307356,88445.0,88434.0,0.09272]
[1769473864231,0.11307356,88445.0,88435.0,0.174825]
[1769473864431,0.03639669,88446.0,88435.0,0.011319]
[1769473867338,0.03639669,88446.0,88436.0,0.163506]
[1769473869641,0.03639669,88446.0,88435.0,0.011319]
[1769473870342,0.03638808,88450.0,88435.0,0.011319]
[1769473870532,0.03638808,88450.0,88434.0,0.09272]
[1769473870733,0.03638965,88449.0,88434.0,0.09272]
[1769473871341,0.14946001,88448.0,88434.0,0.104039]
[1769473871734,0.03638965,88448.0,88434.0,0.104039]
[1769473876247,0.13831786,88452.0,88438.0,0.163506]
[1769473876441,0.03639786,88451.0,88436.0,0.011319]
[1769473876746,0.03639991,88449.0,88436.0,0.011319]
[1769473877142,0.11306461,88448.0,88436.0,0.011319]
[1769473877744,0.03639991,88447.0,88436.0,0.011319]
[1769473878244,0.03639991,88451.0,88437.0,0.163506]
[1769473878444,0.03639991,88451.0,88440.0,0.163506]
[1769473878645,0.14946836,88451.0,88440.0,0.163506]
[1769473879040,0.14946836,88451.0,88441.0,0.011318]
[1769473880653,0.14946836,88451.0,88440.0,0.163506]
[1769473880846,0.03654784,88450.0,88440.0,0.163506]
[1769473881153,0.03654784,88450.0,88437.0,0.011319]
[1769473881453,0.14961117,88449.0,88437.0,0.011319]
[1769473881855,0.03654784,88449.0,88437.0,0.011319]
[1769473882050,0.11306653,88448.0,88437.0,0.011319]
[1769473882753,0.03654784,88449.0,88437.0,0.011319]
[1769473884356,0.03654784,88449.0,88434.0,0.104039]
[1769473884555,0.03654784,88449.0,88436.0,0.011319]
[1769473885456,0.03654784,88449.0,88438.0,0.011319]
[1769473886858,0.03654784,88449.0,88434.0,0.09272]
[1769473886859,0.03654784,88449.0,88435.0,0.011319]
[1769473887060,0.03655166,88445.0,88434.0,0.05616834]
[1769473887259,0.03655166,88445.0,88434.0,0.03180057]
[1769473887461,0.03655166,88445.0,88434.0,0.00472527]
[1769473887650,0.03655166,88445.0,88430.0,0.10188]
[1769473888561,0.03655166,88445.0,88425.0,0.01132]
[1769473888763,0.00938185,88443.0,88426.0,0.10188]
[1769473890851,0.00938185,88441.0,88426.0,0.09188]
[1769473891451,0.00938185,88439.0,88426.0,0.09188]
[1769473892161,0.00938185,88437.0,88426.0,0.09188]
[1769473892350,0.00938185,88437.0,88427.0,0.0904079]
[1769473892855,0.00938185,88437.0,88426.0,0.1822879]
[1769473893762,0.00938185,88435.0,88426.0,0.1822879]
[1769473894461,0.00938185,88435.0,88424.0,0.1781279]
[1769473894660,0.00938185,88432.0,88424.0,0.05061041]
[1769473895255,0.11308315,88431.0,88416.0,0.10188]
[1769473895455,0.12440315,88431.0,88416.0,0.10188]
[1769473895654,0.01132,88431.0,88416.0,0.10188]
[1769473896060,0.1130921,88430.0,88416.0,0.10188]
[1769473896563,0.1130921,88430.0,88410.0,0.10040789]
[1769473897161,0.01132,88429.0,88410.0,0.00999999]
[1769473897762,0.11309722,88428.0,88410.0,0.00999999]
[1769473898065,0.11309722,88428.0,88411.0,0.09274]
[1769473898266,0.11309722,88428.0,88412.0,0.01008694]
[1769473898462,0.11309722,88428.0,88413.0,0.01008694]
[1769473898664,0.10188,88434.0,88413.0,0.01008694]
[1769473898866,0.11309658,88433.0,88413.0,0.01008694]
[1769473899262,0.10188,88434.0,88413.0,0.01008694]
[1769473899672,0.11309658,88433.0,88413.0,0.01008694]
[1769473899875,0.10188,88432.0,88413.0,0.01008694]
[1769473900375,0.1130921,88431.0,88413.0,0.01008694]
[1769473900574,0.10188,88430.0,88413.0,0.01008694]
[1769473901075,0.11309338,88429.0,88413.0,0.01008694]
[1769473905779,0.01132,88428.0,88413.0,0.01008694]
[1769473906377,0.10188,88430.0,88413.0,0.01008694]
[1769473906675,0.1130953,88427.0,88413.0,0.01008694]
[1769473906974,0.10188,88430.0,88413.0,0.01008694]
[1769473907175,0.11309466,88429.0,88413.0,0.01008694]
[1769473911184,0.11309466,88429.0,88414.0,0.011322]
[1769473912272,0.11309466,88429.0,88416.0,0.011321]
[1769473925691,0.11309466,88429.0,88424.0,0.01132]
[1769473925888,0.10192,88440.0,88421.0,0.01028408]
[1769473926088,0.16482469,88440.0,88421.0,0.01028408]
[1769473926389,0.11309338,88437.0,88425.0,0.01028408]
[1769473926594,0.16482469,88440.0,88425.0,0.01028408]
[1769473926794,0.11309338,88439.0,88425.0,0.01028408]
[1769473926989,0.11309338,88439.0,88420.0,0.01028421]
[1769473927192,0.11309338,88439.0,88419.0,0.10192]
[1769473928396,0.11309338,88439.0,88419.0,0.113241]
[1769473931596,0.11309338,88439.0,88422.0,0.011321]
[1769473934191,0.11309338,88439.0,88420.0,0.01030371]
[1769473934491,0.11309338,88439.0,88419.0,0.10192]
[1769473934492,0.11309338,88439.0,88424.0,0.01030184]
[1769473934698,0.11309338,88439.0,88430.0,0.01132]
[1769473935492,0.21072845,88467.0,88437.0,0.011319]
[1769473935687,0.10192,88463.0,88441.0,0.011318]
[1769473935899,0.11307804,88451.0,88439.0,0.01030184]
[1769473936198,0.011316,88462.0,88439.0,0.01030184]
[1769473936499,0.11307804,88461.0,88439.0,0.02162084]
[1769473938100,0.11307804,88461.0,88440.0,0.01036384]
[1769473938504,0.56856,88463.0,88440.0,0.01036384]
[1769473938802,0.11305822,88462.0,88440.0,0.01036384]
[1769473938998,0.56856,88463.0,88440.0,0.01036384]
[1769473939498,0.11305758,88462.0,88440.0,0.01036384]
[1769473942101,0.12437358,88462.0,88440.0,0.01036384]
[1769473942498,0.11305758,88462.0,88437.0,0.011319]
[1769473942703,0.11305758,88462.0,88439.0,0.011319]
[1769473943600,0.16344987,88460.0,88440.0,0.16344987]
[1769473944304,0.11305758,88459.0,88440.0,0.16344987]
[1769473944493,0.11305758,88459.0,88441.0,0.011318]
[1769473944805,0.56856,88463.0,88441.0,0.011318]
[1769473945199,0.11305822,88462.0,88441.0,0.011318]
[1769473946000,0.11305822,88462.0,88446.0,0.011318]
[1769473946202,0.11305822,88462.0,88450.0,0.16344987]
[1769473946404,0.11305822,88462.0,88446.0,0.011318]
[1769473948416,0.10188,88461.0,88446.0,0.011318]
[1769473948803,0.11305311,88460.0,88447.0,0.09271]
[1769473949010,0.11305311,88460.0,88448.0,0.011317]
[1769473949303,0.11305311,88460.0,88433.0,0.011319]
[1769473949304,0.011317,88448.0,88423.0,0.309561]
[1769473949509,0.11305311,88460.0,88413.0,0.011322]
[1769473949510,0.011319,88439.0,88413.0,0.011322]
[1769473949702,0.16344987,88432.0,88410.0,0.17477187]
[1769473949902,0.2982,88432.0,88409.0,0.02164289]
[1769473950303,0.2982,88432.0,88410.0,0.16344987]
[1769473950812,0.2982,88432.0,88411.0,0.011322]
[1769473953311,0.2982,88432.0,88412.0,0.09274]
[1769473955216,0.2982,88432.0,88412.0,0.104062]
[1769473956719,0.2982,88432.0,88412.0,0.11429536]
[1769473961323,0.2982,88432.0,88414.0,0.011322]
[1769473962107,0.10192,88431.0,88414.0,0.011322]
[1769473965019,0.10192,88431.0,88416.0,0.011321]
[1769473965427,0.06136065,88433.0,88416.0,0.011321]
[1769473965616,0.10192,88432.0,88418.0,0.011321]
[1769473965920,0.10192,88431.0,88418.0,0.011321]
[1769473966818,0.23825706,88440.0,88418.0,0.011321]
[1769473967017,0.6202,88439.0,88420.0,0.011321]
[1769473967214,0.11309082,88434.0,88420.0,0.011321]
[1769473967723,0.6202,88439.0,88420.0,0.011321]
[1769473967925,0.11309082,88438.0,88420.0,0.011321]
[1769473968125,0.6202,88439.0,88420.0,0.011321]
[1769473968425,0.11308763,88438.0,88420.0,0.011321]
[1769473972029,0.11308763,88438.0,88413.0,0.0103342]
[1769473973627,0.12440663,88438.0,88417.0,0.011321]
[1769473974328,0.11308763,88438.0,88417.0,0.011321]
[1769473975029,0.11308763,88438.0,88419.0,0.011321]
[1769473975928,0.11308763,88438.0,88412.0,0.09274]
[1769473976126,0.16344987,88430.0,88412.0,0.09274]
[1769473976322,0.10192,88429.0,88412.0,0.09274]
[1769473976827,0.11308571,88428.0,88412.0,0.09274]
[1769473981527,0.11308571,88428.0,88413.0,0.01028172]
[1769473981731,0.10192,88427.0,88418.0,0.011321]
[1769473981927,0.07584892,88428.0,88419.0,0.01028172]
[1769473982226,0.10192,88427.0,88419.0,0.01028172]
[1769473983331,0.10192,88429.0,88419.0,0.01028172]
[1769473984431,0.11309146,88428.0,88419.0,0.01028172]
[1769473985023,0.10192,88429.0,88419.0,0.01028172]
[1769473985522,0.1130921,88428.0,88419.0,0.01028172]
[1769473985833,0.1130921,88428.0,88420.0,0.011321]
[1769473986029,0.22693906,88440.0,88423.0,0.01036008]
[1769473986030,0.10192,88437.0,88423.0,0.01036008]
[1769473987135,0.1130921,88436.0,88423.0,0.01036008]
[1769473988634,0.1130921,88436.0,88420.0,0.011321]
[1769473990037,0.1130921,88436.0,88422.0,0.011321]
[1769473992340,0.1130921,88436.0,88424.0,0.01132]
[1769473993443,0.1130921,88436.0,88427.0,0.01132]
[1769473993642,0.06348919,88440.0,88427.0,0.0103805]
[1769473993837,0.10192,88440.0,88427.0,0.0103805]
[1769473995343,0.10192,88440.0,88430.0,0.16344987]
[1769473996132,0.10192,88440.0,88429.0,0.01132]
[1769473997444,0.10192,88440.0,88430.0,0.16344987]
[1769473999533,0.10192,88440.0,88432.0,0.01038568]
[1769473999935,0.0609629,88450.0,88432.0,0.01038568]
[1769474000130,0.6244,88449.0,88431.0,0.01132]
[1769474000330,0.11307612,88443.0,88431.0,0.01132]
[1769474000640,0.6244,88449.0,88431.0,0.01132]
[1769474000939,0.11307612,88448.0,88431.0,0.01132]
[1769474001526,0.11307612,88448.0,88435.0,0.011319]
[1769474003741,0.11307612,88448.0,88436.0,0.09272]
[1769474005042,0.11307612,88448.0,88437.0,0.011319]
[1769474005440,0.73931612,88448.0,88439.0,0.011319]
[1769474005835,0.62624,88448.0,88439.0,0.011319]
[1769474006142,0.11306653,88447.0,88439.0,0.011319]
[1769474007944,0.11306653,88447.0,88441.0,0.011318]
[1769474011245,0.11306653,88447.0,88436.0,0.09272]
[1769474012451,0.11306653,88447.0,88440.0,0.011318]
[1769474014143,0.62624,88448.0,88440.0,0.011318]
[1769474014754,0.62624,88448.0,88442.0,0.011318]
[1769474015446,0.06115595,88455.0,88436.0,0.09272]
[1769474015447,0.06115595,88455.0,88437.0,0.01038439]
[1769474015650,0.52764,88454.0,88437.0,0.01038439]
[1769474015852,0.64070589,88454.0,88437.0,0.01038439]
[1769474016251,0.52764,88454.0,88437.0,0.01038439]
[1769474017353,0.52764,88454.0,88445.0,0.011318]
[1769474019853,0.52764,88454.0,88436.0,0.09272]
[1769474020048,0.52764,88454.0,88441.0,0.011318]
[1769474020462,0.52764,88454.0,88436.0,0.09272]
[1769474020463,0.59141207,88454.0,88443.0,0.011318]
[1769474028375,0.06377207,88454.0,88443.0,0.011318]
[1769474028575,0.10188,88456.0,88443.0,0.011318]
[1769474028877,0.11306014,88455.0,88443.0,0.011318]
[1769474030575,0.11306014,88455.0,88445.0,0.011318]
[1769474033077,0.06210933,88456.0,88438.0,0.01032418]
[1769474033277,0.53232,88461.0,88438.0,0.01032418]
[1769474033476,0.53232,88461.0,88439.0,0.01035162]
[1769474033679,0.53232,88461.0,88449.0,0.011317]
[1769474033874,0.53232,88461.0,88451.0,0.011317]
[1769474034079,0.06102944,88468.0,88451.0,0.011317]
[1769474034280,0.11305183,88460.0,88451.0,0.011317]
[1769474034578,0.63432,88467.0,88451.0,0.011317]
[1769474034779,0.01232845,88464.0,88451.0,0.011317]
[1769474034979,0.63432,88467.0,88451.0,0.011317]
[1769474034980,0.11305183,88463.0,88451.0,0.011317]
[1769474035483,0.63432,88467.0,88451.0,0.011317]
[1769474035682,0.11304863,88466.0,88451.0,0.011317]
[1769474037080,0.11304863,88466.0,88441.0,0.01035958]
[1769474037983,0.11304863,88466.0,88440.0,0.0905446]
[1769474037984,0.011316,88463.0,88442.0,0.011318]
[1769474038184,0.01232845,88465.0,88438.0,0.1018636]
[1769474038381,0.63432,88467.0,88438.0,0.1018636]
[1769474038579,0.11305375,88464.0,88438.0,0.011319]
[1769474038980,0.63432,88467.0,88438.0,0.011319]
[1769474039182,0.12538539,88466.0,88438.0,0.1018636]
[1769474039384,0.011316,88462.0,88438.0,0.011319]
[1769474039780,0.11305694,88461.0,88438.0,0.011319]
[1769474041290,0.011316,88460.0,88438.0,0.1018636]
[1769474041992,0.11305886,88459.0,88438.0,0.1018636]
[1769474042189,0.53388,88458.0,88438.0,0.1018636]
[1769474042386,0.10188,88457.0,88438.0,0.011319]
[1769474042788,0.1130595,88456.0,88438.0,0.011319]
[1769474043386,0.1130595,88456.0,88440.0,0.011318]
[1769474043892,0.1130595,88456.0,88437.0,0.1018636]
[1769474044082,0.1130595,88456.0,88437.0,0.0905446]
[1769474044289,0.1130595,88456.0,88436.0,0.09272]
[1769474044290,0.1130595,88456.0,88436.0,0.1832646]
[1769474044482,0.011317,88455.0,88436.0,0.1832646]
[1769474045186,0.11306078,88454.0,88436.0,0.1832646]
[1769474045890,0.11306078,88454.0,88436.0,0.09272]
[1769474046792,0.06270184,88456.0,88436.0,0.09272]
[1769474046993,0.11306461,88455.0,88436.0,0.09272]
[1769474047288,0.16306914,88457.0,88436.0,0.09272]
[1769474047589,0.12437933,88456.0,88436.0,0.09272]
[1769474051087,0.011317,88454.0,88436.0,0.09272]
[1769474051793,0.011318,88446.0,88428.0,0.13578984]
[1769474052087,0.16306914,88457.0,88424.0,0.13578984]
[1769474052088,0.011318,88444.0,88424.0,0.13578984]
[1769474052288,0.40004,88443.0,88424.0,0.13578984]
[1769474052493,0.40004,88443.0,88422.0,0.011321]
[1769474052694,0.40004,88443.0,88419.0,0.14711084]
[1769474052895,0.40004,88443.0,88419.0,0.011321]
[1769474053090,0.11307484,88442.0,88419.0,0.011321]
[1769474053586,0.11307484,88442.0,88417.0,0.10188]
[1769474053792,0.11307484,88442.0,88421.0,0.011321]
[1769474055094,0.11307484,88442.0,88422.0,0.09273]
[1769474057591,0.11307484,88442.0,88423.0,0.011321]
[1769474058790,0.11307484,88442.0,88425.0,0.01132]
[1769474060294,0.11307484,88442.0,88430.0,0.01059648]
[1769474061398,0.11307484,88442.0,88430.0,0.02191648]
[1769474061699,0.11307484,88442.0,88431.0,0.01062848]
[1769474062797,0.11307484,88442.0,88432.0,0.011319]
[1769474062999,0.06347579,88443.0,88433.0,0.01082965]
[1769474063199,0.10188,88446.0,88433.0,0.01082965]
[1769474063697,0.11307484,88445.0,88433.0,0.01082965]
[1769474068007,0.11307484,88445.0,88434.0,0.02216148]
[1769474068301,0.06303118,88446.0,88436.0,0.011319]
[1769474068492,0.10188,88450.0,88436.0,0.011319]
[1769474069010,0.11307228,88449.0,88436.0,0.011319]
[1769474070102,0.11307228,88449.0,88437.0,0.09272]
[1769474070897,0.16355174,88450.0,88440.0,0.01087063]
[1769474071610,0.16355174,88450.0,88439.0,0.16348309]
[1769474071611,0.11013871,88461.0,88445.0,0.01087063]
[1769474071908,0.00825871,88460.0,88445.0,0.01087063]
[1769474072504,0.11305502,88459.0,88445.0,0.01087063]
[1769474072705,0.00821932,88458.0,88445.0,0.01087063]
[1769474073399,0.12127562,88457.0,88445.0,0.01087063]
[1769474073708,0.00821932,88457.0,88445.0,0.01087063]
[1769474074099,0.1130563,88456.0,88445.0,0.01087063]
[1769474075409,0.1130563,88456.0,88445.0,0.02218863]
[1769474076203,0.12143089,88456.0,88445.0,0.02218863]
[1769474076594,0.00837459,88456.0,88445.0,0.02218863]
[1769474076914,0.11305758,88455.0,88445.0,0.02218863]
[1769474078211,0.11305758,88455.0,88447.0,0.011317]
[1769474078411,0.16496885,88461.0,88447.0,0.011317]
[1769474078412,0.00838646,88460.0,88447.0,0.011317]
[1769474078715,0.12144468,88460.0,88450.0,0.17480009]